fUSD/lending_fUSD_20260514
["ID","MTS","AMOUNT","RATE_DAILY","PERIOD"]
[422224543,1778728241000,-500.0,0.00014959,2]
[422224546,1778728241000,-330.92319719,0.00014959,2]
[422224548,1778728241000,-153.00627,0.0001497,2]
[422224550,1778728241000,-158.19,0.00014985,2]
[422224556,1778728241000,-288.37111373,0.00014986,2]
[422224551,1778728241000,-170.2915414,0.00014986,2]
[422224547,1778728241000,-151.0,0.00014959,2]
[422224545,1778728241000,-473.01962848,0.00014959,2]
[422224552,1778728241000,-252.65827028,0.00014986,2]
[422224554,1778728241000,-175.88957664,0.00014986,2]
[422224555,1778728241000,-250.77954473,0.00014986,2]
[422224560,1778728241000,-476.18547741,0.00014999,2]
[422224559,1778728241000,-151.0,0.00014997,2]
[422224535,1778728241000,-502.67652341,0.00014899,2]
[422224549,1778728241000,-152.0,0.00014979,20]
[422224539,1778728241000,-151.97371074,0.000149,2]
[422224519,1778728241000,-151.97371074,0.00014769,2]
[422224534,1778728241000,-500.0,0.00014899,2]
[422224514,1778728241000,-151.0,0.00014737,2]
[422224517,1778728241000,-207.130824,0.00014737,2]
[422224515,1778728241000,-207.130824,0.00014737,2]
[422224516,1778728241000,-207.130824,0.00014737,2]
[422224518,1778728241000,-7311.92666488,0.00014754,2]
[422224520,1778728241000,-7311.92666488,0.00014783,2]
[422224557,1778728241000,-158.40742994,0.00014986,2]
[422224521,1778728241000,-6052.0,0.00014789,2]
[422224524,1778728241000,-7311.92666488,0.00014812,2]
[422224533,1778728241000,-206.29811735,0.00014899,2]
[422224526,1778728241000,-152.0,0.00014835,19]
[422224522,1778728241000,-930.0,0.00014789,2]
[422224527,1778728241000,-7311.92666488,0.00014842,2]
[422224525,1778728241000,-151.97371074,0.00014834,2]
[422224529,1778728241000,-7311.92666488,0.00014871,2]
[422224528,1778728241000,-7494.12886146,0.00014848,2]
[422224530,1778728241000,-153.00628,0.0001488,2]
[422224532,1778728241000,-11200.0413,0.00014899,2]
[422224540,1778728241000,-153.00628,0.0001492,2]
[422224531,1778728241000,-264.951646,0.00014896,2]
[422224523,1778728241000,-600.0,0.000148,5]
[422224553,1778728241000,-238.31238197,0.00014986,2]
[422224536,1778728241000,-12434.96742532,0.000149,2]
[422224561,1778728241000,-509.30532025,0.00014999,2]
[422224584,1778728241000,-250.0,0.00014999,2]
[422224587,1778728241000,-156.202,0.00014999,2]
[422224586,1778728241000,-185.313,0.00014999,2]
[422224592,1778728241000,-243.621,0.00014999,2]
[422224593,1778728241000,-926.0,0.00014999,2]
[422224591,1778728241000,-185.0,0.00014999,2]
[422224594,1778728241000,-1610.22718204,0.00014999,2]
[422224588,1778728241000,-194.533,0.00014999,2]
[422224590,1778728241000,-250.0,0.00014999,2]
[422224581,1778728241000,-200.0,0.00014999,2]
[422224595,1778728241000,-332.11298935,0.00014999,2]
[422224598,1778728241000,-1354.0,0.00014999,2]
[422224599,1778728241000,-153.241,0.00014999,2]
[422224597,1778728241000,-754.393,0.00014999,2]
[422224600,1778728241000,-1279.377,0.00014999,2]
[422224602,1778728241000,-1897.0,0.00015,5]
[422224604,1778728241000,-11310.66295282,0.00015,2]
[422224603,1778728241000,-150.0,0.00015,2]
[422224601,1778728241000,-1841.0,0.00015,5]
[422224558,1778728241000,-5024.36972956,0.00014994,2]
[422224596,1778728241000,-1599.65982861,0.00014999,2]
[422224580,1778728241000,-275.0,0.00014999,2]
[422224589,1778728241000,-242.055,0.00014999,2]
[422224582,1778728241000,-200.0,0.00014999,2]
[422224562,1778728241000,-500.0,0.00014999,2]
[422224563,1778728241000,-310.93733253,0.00014999,2]
[422224574,1778728241000,-300.0,0.00014999,2]
[422224564,1778728241000,-510.62007951,0.00014999,2]
[422224567,1778728241000,-539.76497099,0.00014999,2]
[422224578,1778728241000,-300.0,0.00014999,2]
[422224568,1778728241000,-160.8531367,0.00014999,2]
[422224565,1778728241000,-500.0,0.00014999,2]
[422224572,1778728241000,-500.0,0.00014999,2]
[422224570,1778728241000,-500.0,0.00014999,2]
[422224573,1778728241000,-155.58776083,0.00014999,2]
[422224571,1778728241000,-500.0,0.00014999,2]
[422224566,1778728241000,-383.13367241,0.00014999,2]
[422224575,1778728241000,-300.0,0.00014999,2]
[422224576,1778728241000,-300.0,0.00014999,2]
[422224583,1778728241000,-205.827,0.00014999,2]
[422224577,1778728241000,-300.0,0.00014999,2]
[422224605,1778728241000,-1555.74534152,0.00015,2]
[422224585,1778728241000,-244.325,0.00014999,2]
[422224579,1778728241000,-2923.0,0.00014999,5]
[422224569,1778728241000,-500.0,0.00014999,2]
[422224622,1778728243000,-207.130824,0.00014737,2]
[422224625,1778728243000,-474.41697984,0.00015,2]
[422224626,1778728243000,-664.75715728,0.00015,2]
[422224628,1778728243000,-565.21518065,0.00015,2]
[422224624,1778728243000,-746.45034662,0.00015,2]
[422224623,1778728243000,-151.0,0.00014737,2]
[422224629,1778728243000,-747.84394801,0.00015,2]
[422224627,1778728243000,-9815.40157859,0.00015,2]
[422224630,1778728246000,-600.0,0.00014963,2]
[422224634,1778728246000,-5809.1933,0.00015,2]
[422224633,1778728246000,-49806.64642888,0.00015,2]
[422224632,1778728246000,-119433.69156873,0.00015,2]
[422224635,1778728246000,-658.03402278,0.00015,2]
[422224636,1778728246000,-280.50000001,0.00012325,2]
[422224637,1778728246000,-261.7806352,0.00012325,2]
[422224631,1778728246000,-3030.0,0.00014963,2]
[422224640,1778728562000,2027.09,0.00027397,120]
[422224644,1778728700000,153.64,8.861e-05,2]
[422224643,1778728700000,153.64,7.907e-05,2]
[422224642,1778728700000,153.64,6.953e-05,2]
[422224645,1778728701000,153.64,9.815e-05,2]
[422224646,1778729141000,-153.64,0.0001077,2]
[422224648,1778729297000,2127.06,0.00027397,120]
[422224649,1778729370000,-167.05,0.00010916,2]
[422224650,1778729370000,-153.64,0.00011724,2]
[422224651,1778729370000,-5.38052236,0.00011944,2]
[422224683,1778729432000,-153.64,0.00013633,2]
[422224686,1778729432000,-152.0,0.00013753,3]
[422224685,1778729432000,-158.86,0.00013732,2]
[422224687,1778729432000,-1680.0,0.00013873,2]
[422224688,1778729432000,-633.08,0.00013906,2]
[422224689,1778729432000,-710.92,0.00013943,7]
[422224690,1778729432000,-1391.44606818,0.00013982,2]
[422224691,1778729432000,-150.0,0.00013987,2]
[422224692,1778729432000,-710.92,0.00014014,7]
[422224697,1778729432000,-400.0,0.000141,5]
[422224693,1778729432000,-395.86,0.00014071,2]
[422224696,1778729432000,-1218.72,0.00014085,7]
[422224695,1778729432000,-710.92,0.00014085,7]
[422224698,1778729432000,-710.92,0.00014156,7]
[422224699,1778729432000,-800.0,0.000142,5]
[422224684,1778729432000,-166.61,0.00013641,2]
[422224701,1778729432000,-150.0,0.00014237,2]
[422224703,1778729432000,-150.0,0.00014237,2]
[422224700,1778729432000,-947.26,0.00014219,2]
[422224702,1778729432000,-150.0,0.00014237,2]
[422224694,1778729432000,-150.0,0.00014071,2]
[422224681,1778729432000,-5216.0605687,0.00013536,2]
[422224675,1778729432000,-150.0,0.00013488,2]
[422224680,1778729432000,-267.0,0.00013526,2]
[422224704,1778729432000,-150.0,0.00014237,2]
[422224659,1778729432000,-356.44950306,0.00012016,2]
[422224661,1778729432000,-161.48623772,0.00012091,2]
[422224660,1778729432000,-3086.51565981,0.00012016,2]
[422224663,1778729432000,-1200.0,0.00012612,2]
[422224665,1778729432000,-153.64,0.00012678,2]
[422224669,1778729432000,-633.08,0.00013244,2]
[422224666,1778729432000,-300.0,0.00013106,2]
[422224667,1778729432000,-300.0,0.00013106,2]
[422224662,1778729432000,-3737.92686709,0.00012325,2]
[422224668,1778729432000,-2000.0,0.00013244,2]
[422224664,1778729432000,-1021.56682,0.00012613,2]
[422224671,1778729432000,-427.33,0.00013244,2]
[422224670,1778729432000,-160.7,0.00013244,2]
[422224672,1778729432000,-150.0,0.00013488,2]
[422224674,1778729432000,-150.0,0.00013488,2]
[422224673,1778729432000,-150.0,0.00013488,2]
[422224677,1778729432000,-150.0,0.00013488,2]
[422224676,1778729432000,-150.0,0.00013488,2]
[422224679,1778729432000,-150.0,0.00013488,2]
[422224678,1778729432000,-150.0,0.00013488,2]
[422224682,1778729432000,-633.08,0.00013575,2]
[422224706,1778729432000,-150.0,0.00014237,2]
[422224751,1778729432000,-1000.0,0.0001488,2]
[422224707,1778729432000,-633.08,0.00014237,2]
[422224733,1778729432000,-400.0,0.000148,5]
[422224735,1778729432000,-509.67,0.00014802,2]
[422224734,1778729432000,-389.0,0.00014801,2]
[422224736,1778729432000,-8233.7518527,0.00014811,2]
[422224737,1778729432000,-8233.7518527,0.00014822,2]
[422224740,1778729432000,-296.0,0.00014846,2]
[422224739,1778729432000,-8233.7518527,0.00014844,2]
[422224738,1778729432000,-8233.7518527,0.00014833,2]
[422224741,1778729432000,-23236.90736322,0.0001485,2]
[422224732,1778729432000,-8233.7518527,0.000148,2]
[422224743,1778729432000,-413.52821,0.0001485,2]
[422224745,1778729432000,-150.0,0.00014856,2]
[422224746,1778729432000,-413.52821,0.0001486,2]
[422224748,1778729432000,-395.86,0.00014865,2]
[422224747,1778729432000,-312.0,0.00014861,2]
[422224750,1778729432000,-8233.7518527,0.00014878,2]
[422224749,1778729432000,-8233.7518527,0.00014867,2]
[422224753,1778729432000,-1493.80720987,0.00014889,2]
[422224752,1778729432000,-200.0,0.0001488,2]
[422224705,1778729432000,-150.0,0.00014237,2]
[422224744,1778729432000,-8233.7518527,0.00014856,2]
[422224730,1778729432000,-296.0,0.00014766,2]
[422224742,1778729432000,-413.52821,0.0001485,2]
[422224728,1778729432000,-389.0,0.00014759,2]
[422224708,1778729432000,-152.0,0.0001424,7]
[422224731,1778729432000,-507.7172,0.000148,2]
[422224709,1778729432000,-395.86982619,0.0001425,2]
[422224712,1778729432000,-1200.0,0.000143,5]
[422224713,1778729432000,-420.0,0.00014371,2]
[422224711,1778729432000,-152.0,0.00014267,7]
[422224716,1778729432000,-2000.0,0.000145,5]
[422224714,1778729432000,-1600.0,0.000144,5]
[422224710,1778729432000,-688.57871432,0.00014267,2]
[422224718,1778729432000,-633.08,0.00014568,2]
[422224715,1778729432000,-150.0,0.00014487,2]
[422224720,1778729432000,-400.0,0.000146,5]
[422224719,1778729432000,-500.0,0.00014582,2]
[422224721,1778729432000,-264.951646,0.00014648,2]
[422224723,1778729432000,-400.0,0.000147,5]
[422224722,1778729432000,-894.06679198,0.000147,2]
[422224724,1778729432000,-239.0,0.00014735,2]
[422224725,1778729432000,-666.43,0.00014736,2]
[422224727,1778729432000,-12857.9996,0.0001475,2]
[422224717,1778729432000,-2000.0,0.00014537,2]
[422224729,1778729432000,-289.67441483,0.00014765,2]
[422224726,1778729432000,-2337.16556047,0.00014742,2]
[422224787,1778729433000,-500.0,0.00014946,2]
[422224804,1778729433000,-500.0,0.00014946,2]
[422224794,1778729433000,-500.0,0.00014946,2]
[422224792,1778729433000,-500.0,0.00014946,2]
[422224796,1778729433000,-500.0,0.00014946,2]
[422224800,1778729433000,-500.0,0.00014946,2]
[422224799,1778729433000,-500.0,0.00014946,2]
[422224789,1778729433000,-500.0,0.00014946,2]
[422224798,1778729433000,-500.0,0.00014946,2]
[422224801,1778729433000,-500.0,0.00014946,2]
[422224791,1778729433000,-500.0,0.00014946,2]
[422224802,1778729433000,-500.0,0.00014946,2]
[422224813,1778729433000,-500.0,0.00014946,2]
[422224805,1778729433000,-500.0,0.00014946,2]
[422224809,1778729433000,-500.0,0.00014946,2]
[422224808,1778729433000,-500.0,0.00014946,2]
[422224807,1778729433000,-500.0,0.00014946,2]
[422224812,1778729433000,-500.0,0.00014946,2]
[422224810,1778729433000,-500.0,0.00014946,2]
[422224806,1778729433000,-500.0,0.00014946,2]
[422224811,1778729433000,-500.0,0.00014946,2]
[422224814,1778729433000,-500.0,0.00014946,2]
[422224816,1778729433000,-500.0,0.00014946,2]
[422224797,1778729433000,-500.0,0.00014946,2]
[422224803,1778729433000,-500.0,0.00014946,2]
[422224783,1778729433000,-159.92240654,0.00014946,2]
[422224758,1778729433000,-508.7088256,0.00014899,2]
[422224781,1778729433000,-218.0,0.00014937,2]
[422224755,1778729433000,-526.20615957,0.00014889,2]
[422224754,1778729433000,-444.0,0.00014889,2]
[422224757,1778729433000,-473.01962848,0.00014899,2]
[422224756,1778729433000,-5769.73848326,0.00014889,2]
[422224759,1778729433000,-1135.491,0.00014899,2]
[422224760,1778729433000,-164.447,0.00014899,2]
[422224761,1778729433000,-500.0,0.00014899,2]
[422224764,1778729433000,-11200.0413,0.000149,2]
[422224763,1778729433000,-2000.0,0.000149,2]
[422224762,1778729433000,-518.73852674,0.00014899,2]
[422224765,1778729433000,-57351.7486,0.000149,2]
[422224785,1778729433000,-500.0,0.00014946,2]
[422224766,1778729433000,-9125.754,0.000149,2]
[422224769,1778729433000,-5000.0,0.000149,2]
[422224768,1778729433000,-16048.0969,0.000149,2]
[422224815,1778729433000,-500.0,0.00014946,2]
[422224771,1778729433000,-400.0,0.000149,5]
[422224772,1778729433000,-175.56571433,0.000149,2]
[422224774,1778729433000,-24576.61389251,0.000149,2]
[422224775,1778729433000,-8233.7518527,0.000149,2]
[422224773,1778729433000,-2673.89629656,0.000149,2]
[422224776,1778729433000,-2117.56462291,0.000149,2]
[422224778,1778729433000,-340.0,0.00014909,2]
[422224779,1778729433000,-389.0,0.00014924,2]
[422224767,1778729433000,-2938.8503084,0.000149,2]
[422224818,1778729433000,-500.0,0.00014946,2]
[422224856,1778729433000,-151.0,0.00014947,2]
[422224824,1778729433000,-65378.59114959,0.00014947,2]
[422224848,1778729433000,-425.186581,0.00014947,2]
[422224849,1778729433000,-425.186581,0.00014947,2]
[422224850,1778729433000,-151.0,0.00014947,2]
[422224852,1778729433000,-2377.493607,0.00014947,2]
[422224851,1778729433000,-2377.493607,0.00014947,2]
[422224853,1778729433000,-2377.493607,0.00014947,2]
[422224854,1778729433000,-2377.493607,0.00014947,2]
[422224855,1778729433000,-151.0,0.00014947,2]
[422224858,1778729433000,-908.018583,0.00014947,2]
[422224860,1778729433000,-908.018583,0.00014947,2]
[422224861,1778729433000,-908.018583,0.00014947,2]
[422224845,1778729433000,-1167.106651,0.00014947,2]
[422224859,1778729433000,-908.018583,0.00014947,2]
[422224863,1778729433000,-208.0,0.00014966,2]
[422224865,1778729433000,-170.29154141,0.00014986,2]
[422224864,1778729433000,-252.65827028,0.00014986,2]
[422224862,1778729433000,-169.0,0.00014959,2]
[422224867,1778729433000,-175.88957665,0.00014986,2]
[422224869,1778729433000,-288.37111373,0.00014986,2]
[422224870,1778729433000,-158.40742994,0.00014986,2]
[422224868,1778729433000,-250.77954473,0.00014986,2]
[422224871,1778729433000,-159.52,0.00014987,2]
[422224872,1778729433000,-341.64941329,0.00014987,2]
[422224819,1778729433000,-500.0,0.00014946,2]
[422224866,1778729433000,-238.93933533,0.00014986,2]
[422224846,1778729433000,-425.186581,0.00014947,2]
[422224857,1778729433000,-151.0,0.00014947,2]
[422224844,1778729433000,-1167.106651,0.00014947,2]
[422224821,1778729433000,-500.0,0.00014946,2]
[422224817,1778729433000,-500.0,0.00014946,2]
[422224820,1778729433000,-500.0,0.00014946,2]
[422224822,1778729433000,-500.0,0.00014946,2]
[422224825,1778729433000,-6288.76415153,0.00014947,2]
[422224826,1778729433000,-11421.83154008,0.00014947,2]
[422224827,1778729433000,-297.28489918,0.00014947,2]
[422224828,1778729433000,-29129.32202912,0.00014947,2]
[422224829,1778729433000,-151.0,0.00014947,2]
[422224831,1778729433000,-151.0,0.00014947,2]
[422224832,1778729433000,-151.0,0.00014947,2]
[422224830,1778729433000,-151.0,0.00014947,2]
[422224823,1778729433000,-420.05521781,0.00014946,2]
[422224834,1778729433000,-151.0,0.00014947,2]
[422224835,1778729433000,-175.70569,0.00014947,2]
[422224842,1778729433000,-1167.106651,0.00014947,2]
[422224841,1778729433000,-271.93944,0.00014947,2]
[422224836,1778729433000,-151.0,0.00014947,2]
[422224840,1778729433000,-271.93944,0.00014947,2]
[422224843,1778729433000,-1167.106651,0.00014947,2]
[422224838,1778729433000,-271.93944,0.00014947,2]
[422224837,1778729433000,-151.0,0.00014947,2]
[422224847,1778729433000,-425.186581,0.00014947,2]
[422224833,1778729433000,-151.0,0.00014947,2]
[422224839,1778729433000,-271.93944,0.00014947,2]
[422224894,1778729434000,-500.0,0.00014999,2]
[422224893,1778729434000,-500.0,0.00014999,2]
[422224896,1778729434000,-500.0,0.00014999,2]
[422224889,1778729434000,-500.0,0.00014999,2]
[422224890,1778729434000,-500.0,0.00014999,2]
[422224888,1778729434000,-500.37422085,0.00014999,2]
[422224887,1778729434000,-500.0,0.00014999,2]
[422224892,1778729434000,-500.0,0.00014999,2]
[422224886,1778729434000,-500.0,0.00014999,2]
[422224884,1778729434000,-502.67652341,0.00014999,2]
[422224891,1778729434000,-500.0,0.00014999,2]
[422224876,1778729434000,-151.0,0.00014997,2]
[422224883,1778729434000,-510.62007951,0.00014999,2]
[422224881,1778729434000,-160.8531367,0.00014999,2]
[422224882,1778729434000,-500.0,0.00014999,2]
[422224880,1778729434000,-236.86788719,0.00014999,2]
[422224879,1778729434000,-500.0,0.00014999,2]
[422224878,1778729434000,-585.47383923,0.00014999,2]
[422224877,1778729434000,-500.0,0.00014999,2]
[422224875,1778729434000,-151.0,0.00014997,2]
[422224873,1778729434000,-213.01729774,0.00014993,2]
[422224895,1778729434000,-476.18547741,0.00014999,2]
[422224885,1778729434000,-500.0,0.00014999,2]
[422224897,1778729434000,-500.0,0.00014999,2]
[422224874,1778729434000,-156.72750518,0.00014994,2]
[422224900,1778729434000,-10.06122511,0.00014999,2]
[422224922,1778729434000,-1507.28120465,0.00015,2]
[422224923,1778729434000,-720.22605909,0.00015,2]
[422224920,1778729434000,-9987.10158046,0.00015,2]
[422224921,1778729434000,-643.82857995,0.00015,2]
[422224919,1778729434000,-150.0,0.00015,2]
[422224918,1778729434000,-150.0,0.00015,2]
[422224917,1778729434000,-2508.0,0.00015,5]
[422224914,1778729434000,-3542.0,0.00014999,2]
[422224910,1778729434000,-300.0,0.00014999,2]
[422224915,1778729434000,-625.0,0.00014999,2]
[422224912,1778729434000,-150.0,0.00014999,2]
[422224911,1778729434000,-1270.0,0.00014999,2]
[422224899,1778729434000,-500.0,0.00014999,2]
[422224908,1778729434000,-300.0,0.00014999,2]
[422224909,1778729434000,-300.0,0.00014999,2]
[422224916,1778729434000,-3130.0,0.00015,5]
[422224906,1778729434000,-105.50087369,0.00014999,2]
[422224907,1778729434000,-194.49912631,0.00014999,2]
[422224905,1778729434000,-300.0,0.00014999,2]
[422224902,1778729434000,-155.58776083,0.00014999,2]
[422224901,1778729434000,-489.93877489,0.00014999,2]
[422224904,1778729434000,-509.30532025,0.00014999,2]
[422224903,1778729434000,-500.0,0.00014999,2]
[422224898,1778729434000,-500.0,0.00014999,2]
[422224913,1778729434000,-1223.0,0.00014999,2]
[422224929,1778729438000,-42631.42514922,0.00015,2]
[422224928,1778729438000,-196.774283,0.00014947,2]
[422224927,1778729438000,-196.774283,0.00014947,2]
[422224926,1778729438000,-596.04452799,0.000147,2]
[422224932,1778729438000,-32851.6451729,0.00015,2]
[422224930,1778729438000,-950.26887196,0.00015,2]
[422224934,1778729438000,-396.97379908,0.00015,2]
[422224931,1778729438000,-1980.58075856,0.00015,2]
[422224933,1778729438000,-196.774283,0.00014947,2]
[422225003,1778729442000,-196.774283,0.00014947,2]
[422225004,1778729442000,-2131.517557,0.00015,2]
[422225002,1778729442000,-719.20331988,0.00015,2]
[422225011,1778729443000,-397.36301866,0.000147,2]
[422225014,1778729443000,-27387.67065901,0.00015,2]
[422225013,1778729443000,-1711.18759322,0.00015,2]
[422225012,1778729443000,-1347.34484598,0.00015,2]
[422225021,1778729446000,-2252.10110222,0.00014999,2]
[422225024,1778729446000,-396.07904522,0.00014999,2]
[422225023,1778729446000,-1960.46071053,0.00014999,2]
[422225022,1778729446000,-458.38907396,0.00014999,2]
[422225031,1778729599000,1000.0,0.00027397,120]
[422225032,1778729618000,2000.0,0.00027397,120]
[422225033,1778729644000,3000.0,0.00027397,120]
[422225034,1778729663000,4000.0,0.00027397,120]
[422225035,1778729713000,156.83,7.035e-05,2]
[422225036,1778729729000,5000.0,0.00027397,120]
[422225037,1778729748000,152.0,0.00013701,7]
[422225038,1778729776000,5000.0,0.00027397,120]
[422225090,1778730632000,-150.0,0.00014237,2]
[422225067,1778730632000,-150.0,0.00013702,2]
[422225069,1778730632000,-179145.9657,0.00013787,2]
[422225071,1778730632000,-156.83,0.00013794,2]
[422225082,1778730632000,-9984.61,0.000141,2]
[422225073,1778730632000,-6685.37800323,0.0001381,2]
[422225070,1778730632000,-33769.7669,0.00013787,2]
[422225081,1778730632000,-6685.37800318,0.00014052,2]
[422225072,1778730632000,-2977.10173863,0.00013808,2]
[422225074,1778730632000,-150.0,0.00013886,2]
[422225076,1778730632000,-150.0,0.00013916,2]
[422225064,1778730632000,-292.63,0.00013608,2]
[422225079,1778730632000,-250.0,0.00014,2]
[422225075,1778730632000,-614.36,0.0001391,2]
[422225077,1778730632000,-2977.10173859,0.00013929,2]
[422225080,1778730632000,-2977.10173859,0.00014051,2]
[422225083,1778730632000,-300.0,0.000141,5]
[422225086,1778730632000,-6685.37800318,0.00014173,2]
[422225085,1778730632000,-2977.10173859,0.00014172,2]
[422225084,1778730632000,-150.0,0.0001413,2]
[422225094,1778730632000,-1100.0,0.000143,5]
[422225078,1778730632000,-6685.37800318,0.00013931,2]
[422225068,1778730632000,-152.0,0.00013753,3]
[422225066,1778730632000,-190.8,0.00013699,2]
[422225092,1778730632000,-2977.10173859,0.00014293,2]
[422225045,1778730632000,-85.69,0.0001297,2]
[422225046,1778730632000,-302.09808987,0.0001297,2]
[422225044,1778730632000,-614.36,0.00012939,2]
[422225047,1778730632000,-150.87495586,0.0001307,2]
[422225048,1778730632000,-188.96867169,0.0001307,2]
[422225052,1778730632000,-614.36,0.00013263,2]
[422225050,1778730632000,-188.96867169,0.00013211,2]
[422225051,1778730632000,-213.38,0.00013251,2]
[422225049,1778730632000,-2000.0,0.00013117,2]
[422225054,1778730632000,-3783.83,0.0001327,2]
[422225053,1778730632000,-1200.0,0.00013269,2]
[422225055,1778730632000,-239.25,0.00013369,2]
[422225058,1778730632000,-150.0,0.00013488,2]
[422225057,1778730632000,-150.0,0.00013488,2]
[422225056,1778730632000,-300.0,0.00013487,2]
[422225059,1778730632000,-150.0,0.00013488,2]
[422225061,1778730632000,-150.0,0.00013488,2]
[422225060,1778730632000,-150.0,0.00013488,2]
[422225063,1778730632000,-208.6472911,0.00013586,2]
[422225062,1778730632000,-405.7127089,0.00013586,2]
[422225065,1778730632000,-2496.62888157,0.00013693,2]
[422225095,1778730632000,-350.0,0.00014329,2]
[422225089,1778730632000,-614.36,0.00014233,2]
[422225132,1778730632000,-500.0,0.00014897,2]
[422225119,1778730632000,-150.0,0.00014772,2]
[422225120,1778730632000,-2977.10173859,0.00014779,2]
[422225122,1778730632000,-12222.0,0.00014793,2]
[422225124,1778730632000,-300.0,0.000148,5]
[422225125,1778730632000,-368.88443664,0.0001485,2]
[422225126,1778730632000,-367.21506,0.0001485,2]
[422225127,1778730632000,-367.21507,0.0001485,2]
[422225123,1778730632000,-2018.0,0.000148,2]
[422225118,1778730632000,-2000.0,0.00014757,2]
[422225117,1778730632000,-300.0,0.000147,5]
[422225128,1778730632000,-367.21506,0.0001486,2]
[422225087,1778730632000,-200.38022994,0.0001419,2]
[422225131,1778730632000,-1645.0,0.00014883,2]
[422225135,1778730632000,-1196.93229373,0.00014898,2]
[422225138,1778730632000,-500.0,0.00014899,2]
[422225133,1778730632000,-1196.93229375,0.00014897,2]
[422225130,1778730632000,-200.0,0.0001488,2]
[422225136,1778730632000,-1196.93229373,0.00014898,2]
[422225134,1778730632000,-1196.93229373,0.00014897,2]
[422225137,1778730632000,-1196.93229373,0.00014899,2]
[422225129,1778730632000,-1000.0,0.0001488,2]
[422225108,1778730632000,-4907.19170556,0.00014593,2]
[422225121,1778730632000,-6685.37800318,0.00014779,2]
[422225112,1778730632000,-2977.10173859,0.00014657,2]
[422225093,1778730632000,-6685.37800318,0.00014294,2]
[422225088,1778730632000,-700.0,0.000142,5]
[422225091,1778730632000,-150.0,0.00014237,2]
[422225097,1778730632000,-1500.0,0.000144,5]
[422225096,1778730632000,-150.0,0.00014344,2]
[422225109,1778730632000,-201.9544886,0.00014594,2]
[422225098,1778730632000,-2977.10173859,0.00014415,2]
[422225099,1778730632000,-6685.37800318,0.00014416,2]
[422225102,1778730632000,-759.16,0.00014505,7]
[422225103,1778730632000,-2977.10173859,0.00014536,2]
[422225100,1778730632000,-325.36,0.00014432,7]
[422225101,1778730632000,-1900.0,0.000145,5]
[422225115,1778730632000,-196.87,0.000147,2]
[422225114,1778730632000,-613.46949498,0.00014689,2]
[422225116,1778730632000,-327.92660277,0.000147,2]
[422225106,1778730632000,-150.0,0.00014558,2]
[422225105,1778730632000,-196.87,0.0001455,2]
[422225111,1778730632000,-300.0,0.000146,5]
[422225107,1778730632000,-346.0,0.00014582,2]
[422225110,1778730632000,-1680.0,0.00014596,2]
[422225104,1778730632000,-6685.37800318,0.00014537,2]
[422225113,1778730632000,-6685.37800318,0.00014658,2]
[422225147,1778730633000,-1196.93229373,0.000149,2]
[422225150,1778730633000,-164.449,0.000149,2]
[422225153,1778730633000,-300.0,0.000149,5]
[422225144,1778730633000,-500.0,0.00014899,2]
[422225139,1778730633000,-500.0,0.00014899,2]
[422225143,1778730633000,-500.0,0.00014899,2]
[422225142,1778730633000,-500.0,0.00014899,2]
[422225140,1778730633000,-500.0,0.00014899,2]
[422225141,1778730633000,-500.0,0.00014899,2]